[Event "Rapid della Domenica"]
[Site "Chess.com"]
[Date "2020.05.31"]
[Round "3"]
[White "SanSecondoPR"]
[Black "fausto2p"]
[Result "1-0"]
[WhiteElo "1345"]
[BlackElo "1194"]
[TimeControl "720+3"]
[EndTime "7:10:57 PDT"]
[Termination "SanSecondoPR ha vinto per scaccomatto"]

1. e4 {[%clk 0:12:02.9]} 1... e6 {[%clk 0:12:01.4]} 2. d4 {[%clk 0:11:50.1]}
2... d5 {[%clk 0:12:02.4]} 3. e5 {[%clk 0:11:50.2]} 3... c5 {[%clk 0:12:03.7]}
4. c3 {[%clk 0:11:50.6]} 4... Nc6 {[%clk 0:12:03.1]} 5. Nf3 {[%clk 0:11:50.4]}
5... cxd4 {[%clk 0:11:55.9]} 6. cxd4 {[%clk 0:11:49.8]} 6... Nge7 {[%clk
0:11:54]} 7. Bd3 {[%clk 0:11:47.3]} 7... Nf5 {[%clk 0:11:29.4]} 8. Bxf5 {[%clk
0:11:47]} 8... exf5 {[%clk 0:11:29.5]} 9. O-O {[%clk 0:11:47.1]} 9... Be7 {[%clk
0:11:06.1]} 10. a3 {[%clk 0:11:46.2]} 10... O-O {[%clk 0:11:01.1]} 11. b4 {[%clk
0:11:47]} 11... a6 {[%clk 0:10:51.4]} 12. Nbd2 {[%clk 0:11:43.8]} 12... b5
{[%clk 0:10:50.4]} 13. Nb3 {[%clk 0:11:43.7]} 13... a5 {[%clk 0:10:24.3]} 14.
Bb2 {[%clk 0:11:39]} 14... axb4 {[%clk 0:10:09.3]} 15. axb4 {[%clk 0:11:30.3]}
15... Rxa1 {[%clk 0:10:07.9]} 16. Qxa1 {[%clk 0:11:11.1]} 16... Bxb4 {[%clk
0:09:46.9]} 17. Qc1 {[%clk 0:10:41.4]} 17... Bb7 {[%clk 0:09:29.3]} 18. Nc5
{[%clk 0:10:38.7]} 18... Bxc5 {[%clk 0:09:25.4]} 19. Qxc5 {[%clk 0:10:35]} 19...
b4 {[%clk 0:09:11.1]} 20. Qb5 {[%clk 0:10:00.1]} 20... Qc7 {[%clk 0:08:10.2]}
21. Qxd5 {[%clk 0:09:47.4]} 21... Na5 {[%clk 0:07:28.1]} 22. Qb5 {[%clk
0:09:08.2]} 22... b3 {[%clk 0:07:06.9]} 23. Rc1 {[%clk 0:08:26]} 23... Bc6
{[%clk 0:06:41.8]} 24. Qb4 {[%clk 0:07:43]} 24... Rb8 {[%clk 0:06:37.6]} 25. Qd2
{[%clk 0:07:32.1]} 25... Qb6 {[%clk 0:06:00.3]} 26. Ne1 {[%clk 0:06:40.1]} 26...
Bd5 {[%clk 0:05:40.1]} 27. Nd3 {[%clk 0:06:32.8]} 27... Nc4 {[%clk 0:05:31.6]}
28. Qc3 {[%clk 0:06:05.6]} 28... g6 {[%clk 0:04:45]} 29. Nc5 {[%clk 0:05:58.2]}
29... Be6 {[%clk 0:04:27.3]} 30. Nxe6 {[%clk 0:05:53.2]} 30... fxe6 {[%clk
0:04:28.6]} 31. Qxc4 {[%clk 0:05:51.5]} 31... Ra8 {[%clk 0:03:40.8]} 32. h3
{[%clk 0:05:37.2]} 32... Ra2 {[%clk 0:03:35]} 33. Qc3 {[%clk 0:05:14.7]} 33...
Qb5 {[%clk 0:03:18.1]} 34. Qc8+ {[%clk 0:05:01.6]} 34... Kg7 {[%clk 0:03:16.1]}
35. Rc7+ {[%clk 0:04:12.4]} 35... Kh6 {[%clk 0:03:15.3]} 36. Qf8+ {[%clk
0:04:07.7]} 36... Kg5 {[%clk 0:03:08.1]} 37. Qf6+ {[%clk 0:03:59.8]} 37... Kf4
{[%clk 0:03:00.3]} 38. Qh4# {[%clk 0:03:54.1]} 1-0